bitfinex-derivatives/quotes_ETHF0:USTF0_20250507
["timestamp","ask_amount","ask_price","bid_price","bid_amount"]
[1746581526091,10.6998619,1846.4,1846.3,5.4573]
[1746581528001,7.14e-06,1846.4,1846.3,8.6651]
[1746581528309,7.14e-06,1846.4,1846.3,12.2651]
[1746581528596,7.14e-06,1846.4,1846.3,43.3651]
[1746581528803,7.14e-06,1846.4,1846.3,43.7669944]
[1746581529698,10.68206201,1846.7,1846.6,1.08312]
[1746581529902,3.88589,1847.4,1847.2,1.08273]
[1746581530100,3.88589,1847.4,1847.3,1.08271]
[1746581530300,2.8032,1847.4,1847.3,1.08271]
[1746581530601,15.66385476,1847.4,1847.3,1.08271]
[1746581531005,10.66385476,1847.4,1847.3,1.08271]
[1746581531206,10.66385476,1847.4,1847.3,2.73861]
[1746581532607,10.66385476,1847.4,1847.3,28.83861]
[1746581534609,10.66385476,1847.4,1847.3,27.18271]
[1746581535707,10.66385476,1847.4,1847.3,28.79231]
[1746581536708,3.2078,1847.7,1847.6,1.08253]
[1746581537006,8.94313476,1847.7,1847.6,4.37]
[1746581537305,7.86065476,1847.7,1847.6,8.66033]
[1746581537803,2.8617,1847.9,1847.6,7.5778]
[1746581538009,3.94406,1847.9,1847.8,1.08242]
[1746581538212,2.8617,1847.9,1847.8,1.08242]
[1746581538410,10.72235476,1847.9,1847.8,1.08242]
[1746581539215,12.30825476,1847.9,1847.8,1.08242]
[1746581540016,12.30825476,1847.9,1847.8,27.18242]
[1746581541613,13.39061476,1847.9,1847.8,27.18242]
[1746581541813,12.30825476,1847.9,1847.8,27.18242]
[1746581546323,13.39061476,1847.9,1847.8,26.1]
[1746581547318,12.30825476,1847.9,1847.8,27.18242]
[1746581547512,13.39061476,1847.9,1847.8,26.1]
[1746581547709,13.39061476,1847.9,1847.8,30.468]
[1746581547916,1.08259,1847.5,1847.4,3.2078]
[1746581548115,8.94324476,1847.5,1847.4,7.5758]
[1746581548310,8.94324476,1847.5,1847.4,8.65843]
[1746581548517,8.94324476,1847.5,1847.4,19.55843]
[1746581548813,8.94324476,1847.5,1847.4,15.19043]
[1746581549116,10.33894476,1847.5,1847.4,19.55843]
[1746581549321,9.25635476,1847.5,1847.4,19.55843]
[1746581549919,10.84795476,1847.5,1847.4,19.55843]
[1746581550123,2.9873,1847.5,1847.4,23.15843]
[1746581551223,2.9873,1847.5,1847.4,19.55843]
[1746581551429,1.08246,1847.8,1847.7,1.08248]
[1746581551629,4.06976,1847.8,1847.7,5.45048]
[1746581551927,11.93041476,1847.8,1847.7,4.368]
[1746581552821,11.93037476,1847.8,1847.7,4.363]
[1746581553123,1.08256,1847.6,1847.5,1.08255]
[1746581553421,1.08256,1847.6,1847.5,5.44555]
[1746581553620,8.94321476,1847.6,1847.5,5.44555]
[1746581554431,8.94321476,1847.6,1847.5,4.363]
[1746581554930,8.94321476,1847.6,1847.5,5.44559]
[1746581555123,8.94321476,1847.6,1847.5,4.363]
[1746581555428,8.94321476,1847.6,1847.5,5.44559]
[1746581555624,7.86065476,1847.6,1847.5,5.44559]
[1746581556224,9.54155476,1847.6,1847.5,5.44559]
[1746581556826,9.54155476,1847.6,1847.5,7.13999]
[1746581557331,9.54155476,1847.6,1847.5,5.44559]
[1746581557729,9.54155476,1847.6,1847.5,7.13999]
[1746581558329,9.54155476,1847.6,1847.5,5.44559]
[1746581558928,1.6809,1847.6,1847.5,5.44559]
[1746581559126,1.6809,1847.6,1847.5,7.06029]
[1746581560233,1.6809,1847.6,1847.5,5.44559]
[1746581560431,9.54155476,1847.6,1847.5,5.44559]
[1746581560936,9.54155476,1847.6,1847.5,7.06029]
[1746581562131,10.62408476,1847.6,1847.5,5.44559]
[1746581562732,1.08259,1847.5,1847.4,15.19041]
[1746581562933,11.87814476,1847.5,1847.4,15.263]
[1746581563131,11.87814476,1847.5,1847.4,5.44565]
[1746581563432,10.79555476,1847.5,1847.4,5.44565]
[1746581564020,11.87814476,1847.5,1847.4,5.44565]
[1746581564436,11.87814476,1847.5,1847.4,4.363]
[1746581564634,15.08594476,1847.5,1847.4,4.363]
[1746581564931,1.08265,1847.4,1847.3,10.9]
[1746581565134,1.0828,1847.2,1847.1,5.44579]
[1746581565525,8.94345476,1847.2,1847.1,5.44579]
[1746581566033,8.94345476,1847.2,1847.1,16.34579]
[1746581566927,7.86065476,1847.2,1847.1,16.34579]
[1746581567435,9.48405476,1847.2,1847.1,5.44579]
[1746581568336,10.56682476,1847.2,1847.1,5.44579]
[1746581568935,9.48405476,1847.2,1847.1,5.44579]
[1746581570141,10.56682476,1847.2,1847.1,5.44579]
[1746581570841,1.08283,1847.1,1847.0,4.364]
[1746581571140,11.83328476,1847.1,1847.0,4.364]
[1746581571639,1.08289,1847.0,1846.9,66.162]
[1746581571937,11.82204476,1847.0,1846.9,70.526]
[1746581572143,11.82204476,1847.0,1846.9,71.60894]
[1746581573843,11.82204476,1847.0,1846.9,60.70894]
[1746581574143,2.36706,1847.1,1847.0,1.08289]
[1746581574345,4.09196,1847.1,1847.0,1.08289]
[1746581574646,10.86975476,1847.1,1847.0,1.08289]
[1746581574944,11.95258476,1847.1,1847.0,1.08289]
[1746581575136,1.08289,1847.0,1846.9,59.626]
[1746581575443,9.58555476,1847.0,1846.7,1.08302]
[1746581575642,1.08305,1846.8,1846.7,16.34702]
[1746581575849,8.94370476,1846.8,1846.7,11.98302]
[1746581576143,8.94370476,1846.8,1846.7,16.34702]
[1746581576346,10.66860476,1846.8,1846.7,16.34702]
[1746581576643,12.04670476,1846.8,1846.7,10.9]
[1746581577043,12.04670476,1846.8,1846.5,1.08313]
[1746581577044,1.08312,1846.6,1846.5,1.08313]
[1746581577241,8.94377476,1846.6,1846.5,5.44713]
[1746581577543,8.94377476,1846.6,1846.5,16.34713]
[1746581577749,10.57227476,1846.6,1846.5,16.34713]
[1746581578140,10.57227476,1846.6,1846.5,10.9]
[1746581578346,9.48915476,1846.6,1846.4,4.364]
[1746581578538,10.57233476,1846.5,1846.4,4.364]
[1746581579446,10.57233476,1846.5,1846.4,5.44724]
[1746581580144,9.48915476,1846.5,1846.4,1.08324]
[1746581580441,10.57233476,1846.5,1846.4,1.08324]
[1746581581148,1.08324,1846.4,1846.3,16.34825]
[1746581581347,11.97489476,1846.4,1846.3,16.34825]
[1746581582546,11.97489476,1846.4,1846.3,15.265]
[1746581582746,1.08343,1846.1,1845.9,3.2078]
[1746581582940,8.94412476,1846.0,1845.9,4.29128]
[1746581583140,7.86065476,1846.0,1845.9,19.55233]
[1746581583443,8.79698,1846.3,1846.1,1.08341]
[1746581583444,1.5921,1846.2,1846.1,1.08341]
[1746581583947,10.53611476,1846.2,1846.1,1.08341]
[1746581584450,1.08341,1846.1,1846.0,2.74933]
[1746581584646,10.53616476,1846.1,1846.0,2.74933]
[1746581584847,2.67551,1846.1,1846.0,2.74933]
[1746581585144,1.5921,1846.1,1846.0,2.74933]
[1746581585449,1.08347,1846.0,1845.9,7.5688]
[1746581585745,1.08353,1845.9,1845.8,4.361]
[1746581585949,4.06773,1845.9,1845.8,4.361]
[1746581586145,11.92838476,1845.9,1845.8,4.361]
[1746581586446,10.84485476,1845.9,1845.6,3.2078]
[1746581586643,8.94430476,1845.7,1845.6,3.2078]
[1746581586846,8.94430476,1845.7,1845.6,7.5688]
[1746581587043,8.94430476,1845.7,1845.6,11.98371]
[1746581587245,8.94430476,1845.7,1845.6,15.261]
[1746581587445,8.94430476,1845.7,1845.6,4.361]
[1746581587749,7.86065476,1845.7,1845.4,59.54458]
[1746581587948,1.08383,1845.4,1845.3,4.361]
[1746581588446,11.82118476,1845.4,1845.2,11.98392]
[1746581588648,7.86065476,1845.3,1845.2,11.98392]
[1746581588846,8.94453476,1845.3,1845.2,16.34592]
[1746581589043,10.69763476,1845.3,1845.2,16.34592]
[1746581589242,10.69763476,1845.3,1845.2,15.262]
[1746581589656,9.61375476,1845.3,1845.2,16.34594]
[1746581590152,10.69763476,1845.3,1845.2,16.34594]
[1746581590344,10.69763476,1845.3,1845.2,15.262]
[1746581590651,9.61375476,1845.3,1845.2,16.34594]
[1746581590947,9.61375476,1845.3,1845.2,18.04634]
[1746581592656,1.2495,1845.4,1845.3,1.08388]
[1746581592856,1.0838,1845.5,1845.4,1.08383]
[1746581592857,1.7485,1845.5,1845.4,1.08383]
[1746581593345,1.2661,1845.6,1845.5,1.08377]
[1746581593545,4.09831,1845.6,1845.5,5.44577]
[1746581593953,1.379,1845.8,1845.5,4.362]
[1746581594247,1.08351,1846.0,1845.9,1.08353]
[1746581594645,8.94416476,1846.0,1845.9,1.08353]
[1746581595046,3.73156,1846.1,1846.0,1.08347]
[1746581595247,1.08333,1846.3,1845.9,4.8032]
[1746581595548,7.86065476,1846.2,1846.1,1.08341]
[1746581595748,1.08328,1846.4,1846.2,1.0833]
[1746581596051,7.86065476,1846.3,1846.2,2.67876]
[1746581596553,1.379,1846.5,1846.3,1.08326]
[1746581596744,8.94389476,1846.4,1846.3,1.08326]
[1746581596950,7.86065476,1846.4,1846.3,5.44626]
[1746581597157,1.379,1846.5,1846.4,1.08324]
[1746581597642,1.379,1846.5,1846.4,2.82924]
[1746581598043,1.2691,1846.7,1846.6,1.08312]
[1746581598250,1.2691,1846.7,1846.6,5.44612]
[1746581598455,10.21281476,1846.7,1846.6,5.44612]
[1746581599256,10.21281476,1846.7,1846.6,4.363]
[1746581601149,1.08304,1846.8,1846.6,7.5708]
[1746581601349,8.94371476,1846.7,1846.6,4.363]
[1746581601547,1.08312,1846.6,1846.5,4.362]
[1746581601748,8.94389476,1846.4,1846.3,3.2078]
[1746581601953,1.08334,1846.3,1846.2,4.362]
[1746581602154,7.86065476,1846.3,1846.0,1.08342]
[1746581602350,7.86065476,1846.1,1846.0,5.44542]
[1746581602749,7.86065476,1846.1,1846.0,4.362]
[1746581602955,8.39557,1846.5,1846.0,4.362]
[1746581603155,1.08337,1846.2,1846.1,1.08337]
[1746581603562,8.94402476,1846.2,1846.1,1.08337]
[1746581603856,1.08341,1846.1,1846.0,5.44542]
[1746581604050,1.08348,1846.0,1845.9,1.08349]
[1746581604357,1.08353,1846.0,1845.9,4.362]
[1746581604860,8.94418476,1846.0,1845.9,4.362]
[1746581605255,8.94418476,1846.0,1845.9,1.08353]
[1746581605450,8.94418476,1846.0,1845.9,5.44553]
[1746581605656,8.94418476,1846.0,1845.9,4.362]
[1746581606257,8.94418476,1846.0,1845.9,5.44553]
[1746581606459,2.45235,1846.1,1846.0,1.08347]
[1746581606759,8.94410476,1846.1,1846.0,1.08347]
[1746581606952,8.94410476,1846.1,1846.0,2.81797]
[1746581607860,7.86065476,1846.1,1846.0,2.81797]
[1746581608247,8.94406476,1846.1,1846.0,2.81797]
[1746581608453,10.54366476,1846.1,1846.0,2.81797]
[1746581608753,1.5996,1846.1,1846.0,2.81797]
[1746581609161,9.46025476,1846.1,1845.9,5.44549]
[1746581609457,8.94412476,1846.0,1845.9,5.44549]
[1746581609659,10.54372476,1846.0,1845.9,5.44549]
[1746581609855,2.68307,1846.0,1845.9,5.44549]
[1746581610458,2.68307,1846.0,1845.8,1.7345]
[1746581610761,7.86065476,1845.9,1845.7,1.08361]
[1746581610955,11.86384476,1845.8,1845.7,1.08361]
[1746581611156,10.78025476,1845.8,1845.7,5.44561]
[1746581611455,2.9196,1845.8,1845.7,1.08361]
[1746581611653,4.00319,1845.8,1845.7,1.08361]
[1746581611854,4.00319,1845.8,1845.7,5.44561]
[1746581612856,4.00319,1845.8,1845.5,3.2078]
[1746581612857,10.78025476,1845.8,1845.5,3.2078]
[1746581613056,1.08371,1845.6,1845.5,4.29153]
[1746581613257,1.08371,1845.6,1845.5,8.65153]
[1746581613563,10.63496476,1845.6,1845.5,7.5678]
[1746581613862,10.63496476,1845.6,1845.5,8.65157]
[1746581614762,10.63496476,1845.6,1845.5,4.29157]
[1746581614962,10.63496476,1845.6,1845.5,8.65157]
[1746581616964,10.63496476,1845.6,1845.5,5.44377]
[1746581620762,1.2512,1845.8,1845.7,1.08365]
[1746581621966,2.9461,1845.8,1845.7,1.08365]
[1746581622163,10.331,1846.0,1845.6,7.60257]
[1746581622164,7.0555,1846.0,1845.6,7.60257]
[1746581622365,7.86065476,1845.9,1845.8,1.08359]
[1746581622663,7.86065476,1845.9,1845.8,5.44359]
[1746581622863,7.86065476,1845.9,1845.8,5.44353]
[1746581622864,8.94418476,1845.9,1845.8,5.44353]
[1746581623059,8.94418476,1845.9,1845.8,4.36]
[1746581623260,1.08363,1845.8,1845.6,3.2078]
[1746581623460,10.80745476,1845.7,1845.6,4.29151]
[1746581623660,10.80745476,1845.7,1845.6,8.65151]
[1746581623869,10.80745476,1845.7,1845.6,4.29151]
[1746581624066,10.80745476,1845.7,1845.6,8.65151]
[1746581626767,11.89110476,1845.7,1845.6,8.65151]
[1746581626969,11.89110476,1845.7,1845.6,4.29151]
[1746581627169,11.89110476,1845.7,1845.6,8.65151]
[1746581629265,11.89110476,1845.7,1845.6,7.5678]
[1746581629467,11.89110476,1845.7,1845.6,4.36]
[1746581629669,11.89110476,1845.7,1845.6,5.44371]
[1746581631272,7.86065476,1845.7,1845.6,5.44371]
[1746581631966,10.54950476,1845.7,1845.6,5.44371]
[1746581632669,1.6052,1845.7,1845.6,5.44371]
[1746581632869,2.4732,1845.9,1845.8,1.08359]
[1746581633068,7.5772,1846.0,1845.9,1.08353]
[1746581633369,7.5772,1846.0,1845.9,5.44353]
[1746581634270,7.5772,1846.0,1845.9,7.05593]
[1746581635171,8.66067,1846.0,1845.9,7.05593]
[1746581635470,16.52132476,1846.0,1845.9,4.36]
[1746581636771,16.52132476,1846.0,1845.9,5.44353]
[1746581637567,15.43785476,1846.0,1845.9,5.44353]
[1746581637775,7.5772,1846.0,1845.9,5.44353]
[1746581638073,7.5772,1846.0,1845.9,7.14543]
[1746581638276,8.66067,1846.0,1845.9,5.44353]
[1746581638772,10.54932476,1846.0,1845.9,5.44353]
[1746581639871,1.08353,1845.9,1845.8,5.44356]
[1746581640171,2.75413,1845.9,1845.8,5.44356]
[1746581640373,10.61478476,1845.9,1845.8,5.44356]
[1746581641977,9.53125476,1845.9,1845.8,5.44356]
[1746581642180,1.6706,1845.9,1845.8,5.44356]
[1746581645277,2.75413,1845.9,1845.8,5.44356]
[1746581646176,10.61478476,1845.9,1845.8,5.44356]
[1746581646378,1.08359,1845.8,1845.7,1.08363]
[1746581646573,3.87759,1845.8,1845.7,5.43963]
[1746581646876,11.73824476,1845.8,1845.7,5.43963]
[1746581647278,11.73824476,1845.8,1845.7,4.356]
[1746581648577,3.2078,1846.0,1845.7,4.356]
[1746581648779,7.86065476,1845.9,1845.8,1.08355]
[1746581649076,9.48095476,1845.9,1845.8,1.08355]
[1746581649277,2.70388,1845.9,1845.8,1.08355]
[1746581649977,2.70388,1845.9,1845.8,2.78485]
[1746581650379,2.70388,1845.9,1845.8,1.7013]
[1746581650574,1.0837,1845.7,1845.6,1.08367]
[1746581650775,1.0837,1845.7,1845.6,5.43967]
[1746581650776,8.94435476,1845.7,1845.6,5.43967]
[1746581651276,11.29695476,1845.7,1845.6,5.43967]
[1746581651669,11.29695476,1845.7,1845.6,4.356]
[1746581652779,11.29695476,1845.7,1845.6,5.43971]
[1746581656082,9.05325476,1845.7,1845.6,8.64751]
[1746581656284,1.6855,1845.8,1845.7,1.08365]
[1746581656581,9.54615476,1845.8,1845.7,2.74975]
[1746581657080,9.54615476,1845.8,1845.4,3.2078]
[1746581657285,7.86065476,1845.3,1845.2,8.21761715]
[1746581657584,7.86065476,1845.4,1845.3,1.08388]
[1746581657775,11.79699476,1845.6,1845.5,1.08377]
[1746581658380,10.71325476,1845.6,1845.5,2.74987]
[1746581658780,2.8526,1845.6,1845.5,2.74987]
[1746581658981,7.05563,1845.8,1845.7,1.08365]
[1746581659176,1.6864,1845.8,1845.7,5.43965]
[1746581659678,2.76999,1845.8,1845.7,7.06065]
[1746581659875,1.6864,1845.8,1845.7,7.06065]
[1746581660375,2.76999,1845.8,1845.7,7.06065]
[1746581661577,2.76999,1845.8,1845.7,5.977]
[1746581661881,10.63064476,1845.8,1845.7,4.356]
[1746581662182,13.83844476,1845.8,1845.7,4.356]
[1746581662382,10.63064476,1845.8,1845.7,4.356]
[1746581662983,10.63064476,1845.8,1845.7,5.43965]
[1746581664087,10.63064476,1845.8,1845.7,4.356]
[1746581666282,8.94424476,1845.8,1845.7,5.43965]
[1746581666489,1.08359,1845.8,1845.7,5.43965]
[1746581669789,1.0835,1846.0,1845.7,7.5638]
[1746581669991,1.0835,1846.0,1845.9,1.08353]
[1746581670390,2.7901,1846.0,1845.9,1.08353]
[1746581670589,1.7066,1846.0,1845.9,1.08353]
[1746581670884,2.79007,1846.0,1845.9,1.08353]
[1746581671085,2.3792,1846.1,1846.0,1.08347]
[1746581671291,9.94397277,1846.4,1846.0,5.9521]
[1746581671491,1.0833,1846.3,1846.2,3.2078]
[1746581671791,2.73,1846.3,1846.2,7.5638]
[1746581672793,1.6467,1846.3,1846.2,8.64712]
[1746581673381,2.73,1846.3,1846.2,8.64712]
[1746581673596,1.08336,1846.2,1846.1,1.08337]
[1746581673795,4.00866,1846.2,1846.1,5.43937]
[1746581674494,2.9253,1846.2,1846.1,5.43937]
[1746581675993,1.2606,1846.3,1846.2,1.08336]
[1746581676194,2.93,1846.3,1846.2,2.82776]
[1746581676386,4.0133,1846.3,1846.2,2.82776]
[1746581677196,2.93,1846.3,1846.2,2.82776]
[1746581679194,1.2382,1846.5,1846.4,1.08324]
[1746581679398,9.09885476,1846.5,1846.4,8.64304]
[1746581679583,2.71704,1846.6,1846.4,7.5598]
[1746581679788,1.6339,1846.6,1846.5,11.98318]
[1746581679989,1.6339,1846.6,1846.5,13.62898]
[1746581680196,1.6339,1846.6,1846.5,6.32898]
[1746581680394,2.71702,1846.6,1846.5,4.68318]
[1746581680788,10.57767476,1846.6,1846.5,15.58318]
[1746581681098,10.57767476,1846.6,1846.5,11.98318]
[1746581684287,10.57767476,1846.6,1846.5,10.9]
[1746581684491,1.08318,1846.5,1846.4,5.4352]
[1746581684695,3.97358,1846.5,1846.4,1.0832]
[1746581684898,1.0834,1846.2,1846.1,5.43539]
[1746581685194,8.94405476,1846.2,1846.1,16.33539]
[1746581685998,11.98925476,1846.2,1846.1,16.33539]
[1746581689495,16.98925476,1846.2,1845.8,1.08355]
[1746581689802,7.86065476,1845.9,1845.8,5.43555]
[1746581690002,10.52889476,1846.1,1846.0,1.08347]
[1746581692505,1.341,1846.2,1846.1,1.08341]
[1746581692705,9.55145476,1846.2,1846.1,5.43541]
[1746581692905,1.6908,1846.2,1846.1,5.43541]
[1746581693103,1.6908,1846.2,1846.1,7.08121]
[1746581694305,5.4331,1846.7,1846.6,1.0831]
[1746581694604,1.08312,1846.6,1846.5,1.08314]
[1746581695005,7.86065476,1846.6,1846.5,1.08314]
[1746581695206,8.94377476,1846.6,1846.5,1.08314]
[1746581695397,7.86065476,1846.6,1846.5,1.08314]
[1746581695599,10.76185476,1846.6,1846.5,1.08314]
[1746581697106,10.76185476,1846.6,1846.5,4.68314]
[1746581698101,10.76185476,1846.6,1846.5,1.08314]
[1746581698310,11.84497476,1846.6,1846.5,1.08314]
[1746581698808,10.76185476,1846.6,1846.5,1.08314]
[1746581700004,4.1944,1846.8,1846.7,1.08306]
[1746581700207,12.05505476,1846.8,1846.7,1.08306]
[1746581700409,12.05505476,1846.8,1846.7,5.43506]
[1746581700904,13.13805476,1846.8,1846.7,4.352]
[1746581701298,13.13805476,1846.8,1846.7,5.43506]
[1746581701500,13.13805476,1846.8,1846.7,4.352]
[1746581701701,13.13805476,1846.8,1846.7,5.43506]
[1746581701901,2.8747,1846.8,1846.7,5.43506]
[1746581702304,2.8747,1846.8,1846.7,7.02806]
[1746581702712,1.353,1847.0,1846.9,1.08294]
[1746581702916,10.97135476,1847.0,1846.9,1.08294]
[1746581703510,10.97135476,1847.0,1846.9,2.67594]
[1746581704407,3.1107,1847.0,1846.9,2.67594]
[1746581704611,2.70737,1846.9,1846.4,1.0832]
[1746581704813,7.86065476,1846.5,1846.4,1.08321]
[1746581705211,11.85545476,1846.5,1846.4,1.08321]
[1746581705611,11.85545476,1846.5,1846.4,5.43421]
[1746581705814,5.43796,1846.9,1846.8,1.083]
[1746581706216,13.29861476,1846.9,1846.8,1.083]
[1746581706610,8.94361476,1846.9,1846.8,1.083]
[1746581706817,8.94364476,1846.9,1846.8,1.083]
[1746581707316,11.75324476,1846.9,1846.8,1.083]
[1746581709414,10.67025476,1846.9,1846.8,1.083]
[1746581709612,2.8096,1846.9,1846.8,1.083]
[1746581709809,2.8096,1846.9,1846.8,2.8282]
[1746581710714,2.8096,1846.9,1846.8,13.7282]
[1746581714519,2.24467,1847.1,1847.0,1.08289]
[1746581715019,10.10532476,1847.1,1847.0,5.43789]
[1746581715317,11.82862476,1847.1,1847.0,5.43789]
[1746581715816,10.74575476,1847.1,1847.0,5.43789]
[1746581716023,10.74575476,1847.1,1847.0,8.64569]
[1746581716317,11.82858476,1847.1,1847.0,9.03789]
[1746581717120,11.82858476,1847.1,1847.0,5.43789]
[1746581719520,10.74575476,1847.1,1847.0,5.43789]
[1746581721422,11.82858476,1847.1,1847.0,5.43789]
[1746581722617,2.8851,1847.1,1847.0,5.43789]
[1746581722813,11.82858476,1847.1,1847.0,5.43789]
[1746581724530,7.86065476,1847.1,1847.0,5.43789]
[1746581724725,11.91035476,1847.1,1847.0,5.43789]
[1746581725923,12.99318476,1847.1,1847.0,5.43789]
[1746581726425,11.91035476,1847.1,1847.0,5.43789]
[1746581727019,12.99318476,1847.1,1847.0,5.43789]
[1746581727213,11.91035476,1847.1,1847.0,5.43789]
[1746581728525,12.99318476,1847.1,1847.0,5.43789]
[1746581728723,11.91035476,1847.1,1847.0,5.43789]
[1746581730628,12.99318476,1847.1,1847.0,5.43789]
[1746581733028,11.91035476,1847.1,1847.0,5.43789]
[1746581734027,4.0497,1847.1,1847.0,5.43789]
[1746581735131,4.0497,1847.1,1847.0,9.03789]
[1746581735320,12.99318476,1847.1,1847.0,9.03789]
[1746581736125,12.99318476,1847.1,1847.0,5.43789]
[1746581737930,12.99318476,1847.1,1847.0,4.355]
[1746581738125,12.99318476,1847.1,1847.0,5.43789]
[1746581741829,16.20098476,1847.1,1847.0,5.43789]
[1746581742030,12.99318476,1847.1,1847.0,5.43789]
[1746581749032,2.70722,1847.0,1846.5,7.13367715]
[1746581749329,8.94377476,1846.6,1846.5,11.47967715]
[1746581749928,12.15157476,1846.6,1846.5,7.13367715]
[1746581750132,24.82587476,1846.6,1846.5,3.90917715]
[1746581750325,24.92543977,1846.6,1846.5,3.90917715]
[1746581752236,19.92544391,1846.6,1846.5,3.90917715]
[1746581753036,18.84232391,1846.6,1846.1,4.346]
[1746581753237,8.94393476,1846.4,1846.3,1.08328]
[1746581753631,10.57353476,1846.4,1846.3,2.75718]
[1746581754428,10.57353476,1846.4,1846.3,1.6739]
[1746581754836,1.0833,1846.3,1846.2,2.16061]
[1746581755134,3.7202,1846.3,1846.2,2.16066]
[1746581756345,1.08336,1846.2,1846.1,6.0199]
[1746581756642,2.75146,1846.2,1846.1,4.346]
[1746581756947,3.80376,1846.2,1846.1,4.346]
[1746581757744,3.80376,1846.2,1846.1,5.42941]
[1746581758138,3.80376,1846.2,1846.1,4.346]
[1746581759446,3.80376,1846.2,1846.1,5.42941]
[1746581760041,1.08336,1846.2,1846.1,5.42941]
[1746581760444,1.08336,1846.2,1846.1,4.346]
[1746581760646,8.94401476,1846.2,1846.1,4.346]
[1746581760947,9.91431476,1846.2,1846.1,4.346]
[1746581761346,1.08353,1845.9,1845.8,4.29136]
[1746581761547,7.86065476,1845.9,1845.8,4.29136]
[1746581761846,3.68905,1846.1,1846.0,1.08347]
[1746581762250,11.54970476,1846.1,1846.0,1.08347]
[1746581762447,1.6007,1846.1,1846.0,1.08347]
[1746581762641,1.6007,1846.1,1846.0,3.76807]
[1746581763040,2.68411,1846.1,1846.0,8.11507]
[1746581763550,10.54476476,1846.1,1846.0,4.347]
[1746581765046,1.08359,1845.8,1845.7,4.347]
[1746581765246,8.94424476,1845.8,1845.7,5.43065]
[1746581765649,7.86065476,1845.8,1845.7,5.43065]
[1746581765851,3.82355,1845.9,1845.7,5.43065]
[1746581765852,2.83135,1845.9,1845.8,1.08359]
[1746581766050,10.69200476,1845.9,1845.8,3.76419]
[1746581766251,10.69200476,1845.9,1845.8,7.36419]
[1746581767051,1.08349,1846.0,1845.9,1.08353]
[1746581767253,8.94414476,1846.0,1845.9,3.74403]
[1746581767444,1.08349,1846.0,1845.9,3.74403]
[1746581767752,8.94414476,1846.0,1845.9,3.74403]
[1746581768250,8.94414476,1846.0,1845.9,7.34403]
[1746581768551,8.94414476,1846.0,1845.9,6.2605]
[1746581768947,10.58684476,1846.0,1845.9,7.34403]
[1746581769251,10.58684476,1846.0,1845.9,6.2605]
[1746581770154,10.58684476,1846.0,1845.9,7.34403]
[1746581770853,9.50335476,1846.0,1845.9,7.34403]
[1746581771044,2.72607,1846.2,1846.1,1.08341]
[1746581771451,9.50335476,1846.2,1846.1,1.08341]
[1746581771754,1.6427,1846.2,1846.1,3.66511]
[1746581771955,2.72606,1846.2,1846.1,3.66511]
[1746581772257,2.72606,1846.2,1846.1,2.69721]
[1746581772646,1.08341,1846.1,1846.0,7.945]
[1746581772847,10.66856476,1846.1,1846.0,7.945]
[1746581773049,10.66856476,1846.1,1846.0,9.02847]
[1746581773249,10.66856476,1846.1,1846.0,5.42847]
[1746581774957,1.08347,1846.0,1845.9,4.345]
[1746581775255,12.65282476,1846.0,1845.9,4.345]
[1746581775452,12.65282476,1846.0,1845.6,5.42867]
[1746581775453,1.08365,1845.7,1845.6,5.42867]
[1746581775749,1.08386,1845.4,1845.3,5.42886]
[1746581776155,1.08386,1845.4,1845.3,16.32886]
[1746581776352,2.75036,1845.4,1845.3,16.32886]
[1746581776545,10.61101476,1845.4,1845.3,15.245]
[1746581776749,10.61101476,1845.4,1845.3,10.9]
[1746581777656,1.08388,1845.3,1845.2,5.42893]
[1746581777855,10.61923476,1845.3,1845.2,7.14343]
[1746581778058,10.61923476,1845.3,1845.2,18.04343]
[1746581778251,10.61923476,1845.3,1845.2,15.245]
[1746581778452,10.61923476,1845.3,1845.2,16.32894]
[1746581779056,10.61923476,1845.3,1845.2,15.245]
[1746581779258,10.61923476,1845.3,1845.2,16.32894]
[1746581779456,9.53535476,1845.3,1845.2,16.32894]
[1746581779656,8.6356,1845.5,1845.3,1.08383]
[1746581779657,7.5518,1845.5,1845.3,1.08383]
[1746581779850,8.94448476,1845.4,1845.3,2.79833]
[1746581780051,7.86065476,1845.4,1845.3,2.79833]
[1746581780252,1.6747,1845.4,1845.3,2.79833]
[1746581780456,3.09482,1845.6,1845.5,1.08377]
[1746581780654,8.94442476,1845.5,1845.4,2.78867]
[1746581780858,10.56702476,1845.5,1845.4,2.78867]
[1746581781158,2.70637,1845.5,1845.4,2.78867]
[1746581782861,1.6226,1845.5,1845.4,2.78867]
[1746581783358,0.9925,1845.6,1845.5,1.08377]
[1746581783556,8.05834,1845.8,1845.7,1.08365]
[1746581783757,15.91899476,1845.8,1845.7,1.08365]
[1746581783956,14.83535476,1845.8,1845.7,1.08365]
[1746581784358,1.6492,1845.8,1845.7,1.08365]
[1746581784559,3.2078,1845.9,1845.8,1.08359]
[1746581784860,4.29133,1845.9,1845.8,1.08359]
[1746581785160,13.80123476,1845.9,1845.8,1.08359]
[1746581786262,1.08361,1845.8,1845.7,1.0836]
[1746581786559,10.69226476,1845.8,1845.7,1.0836]
[1746581788561,1.748,1845.8,1845.7,1.0836]
[1746581789249,2.83159,1845.8,1845.7,1.0836]
[1746581789857,1.08377,1845.5,1845.4,3.2078]
[1746581790159,1.08402,1845.1,1845.0,1.08403]
[1746581790460,8.94468476,1845.1,1845.0,11.98403]
[1746581790653,7.86065476,1845.1,1845.0,11.98403]
[1746581791154,9.59035476,1845.1,1845.0,13.66913]
[1746581791761,1.7297,1845.1,1845.0,13.66913]
[1746581791961,1.7297,1845.3,1845.2,1.08394]
[1746581792266,9.59035476,1845.3,1845.2,1.08394]
[1746581792966,10.67423476,1845.3,1845.2,1.08394]
[1746581793157,9.59035476,1845.3,1845.2,1.08394]